[Event "*** SCC Grand Prix: Titled Tuesday Blitz"]
[Site "Chess.com"]
[Date "2020.06.02"]
[Round "4"]
[White "Ranindu2003"]
[Black "EugeneRougon"]
[Result "0-1"]
[WhiteElo "2465"]
[BlackElo "2658"]
[TimeControl "180+1"]
[EndTime "10:40:47 PDT"]
[Termination "EugeneRougon won by resignation"]

1. e4 {[%clk 0:03:00.5]} 1... d6 {[%clk 0:02:59.1]} 2. d4 {[%clk 0:03:00.1]}
2... Nf6 {[%clk 0:02:59]} 3. Nc3 {[%clk 0:03:00.5]} 3... g6 {[%clk 0:02:58.8]}
4. f4 {[%clk 0:02:59.2]} 4... Bg7 {[%clk 0:02:58.1]} 5. Nf3 {[%clk 0:02:58.7]}
5... O-O {[%clk 0:02:58]} 6. e5 {[%clk 0:02:58.8]} 6... dxe5 {[%clk 0:02:57.1]}
7. fxe5 {[%clk 0:02:59.6]} 7... Nd5 {[%clk 0:02:55.6]} 8. Bc4 {[%clk 0:02:59.3]}
8... Be6 {[%clk 0:02:55.8]} 9. Bxd5 {[%clk 0:02:58.9]} 9... Bxd5 {[%clk
0:02:56.7]} 10. Nxd5 {[%clk 0:02:59.7]} 10... Qxd5 {[%clk 0:02:57.3]} 11. Qe2
{[%clk 0:03:00.4]} 11... Nc6 {[%clk 0:02:56.9]} 12. c4 {[%clk 0:02:43.3]} 12...
Qd7 {[%clk 0:02:55.4]} 13. d5 {[%clk 0:02:36.6]} 13... Nd8 {[%clk 0:02:54.1]}
14. O-O {[%clk 0:02:34.3]} 14... b5 {[%clk 0:02:53.7]} 15. b3 {[%clk 0:02:29.2]}
15... bxc4 {[%clk 0:02:51.7]} 16. bxc4 {[%clk 0:02:30.1]} 16... c6 {[%clk
0:02:42.4]} 17. Rd1 {[%clk 0:02:21.5]} 17... cxd5 {[%clk 0:02:34.6]} 18. cxd5
{[%clk 0:02:22.4]} 18... Rb8 {[%clk 0:02:26.2]} 19. Ba3 {[%clk 0:02:12.1]} 19...
Re8 {[%clk 0:02:20]} 20. Rac1 {[%clk 0:02:05]} 20... Qa4 {[%clk 0:02:11.5]} 21.
Rc3 {[%clk 0:01:47.8]} 21... f6 {[%clk 0:01:31.7]} 22. e6 {[%clk 0:00:51.5]}
22... f5 {[%clk 0:01:30.3]} 23. Rcd3 {[%clk 0:00:48.7]} 23... Nb7 {[%clk
0:01:20.1]} 24. Ne5 {[%clk 0:00:31.2]} 24... Na5 {[%clk 0:00:55.7]} 25. Kh1
{[%clk 0:00:18.6]} 25... Nc4 {[%clk 0:00:29.1]} 26. Nxc4 {[%clk 0:00:14.8]}
26... Qxc4 {[%clk 0:00:30]} 27. Qe3 {[%clk 0:00:11.1]} 27... Qxa2 {[%clk
0:00:26.5]} 28. d6 {[%clk 0:00:11.4]} 28... exd6 {[%clk 0:00:23.9]} 29. Bxd6
{[%clk 0:00:07.3]} 29... Rb1 {[%clk 0:00:23.7]} 30. e7 {[%clk 0:00:05.8]} 30...
Qa1 {[%clk 0:00:18.5]} 31. Qe1 {[%clk 0:00:04.4]} 31... Rxd1 {[%clk 0:00:17.9]}
32. Rxd1 {[%clk 0:00:05.3]} 32... Qf6 {[%clk 0:00:18.2]} 33. Qb4 {[%clk
0:00:04.2]} 33... Qe6 {[%clk 0:00:16]} 34. Re1 {[%clk 0:00:02.9]} 34... Qd5
{[%clk 0:00:14.5]} 35. h3 {[%clk 0:00:02.3]} 35... Kf7 {[%clk 0:00:14.6]} 36.
Qa3 {[%clk 0:00:01.8]} 36... a5 {[%clk 0:00:14.5]} 37. Qc5 {[%clk 0:00:01.4]}
37... Qxc5 {[%clk 0:00:13.5]} 38. Bxc5 {[%clk 0:00:02.3]} 38... Bf6 {[%clk
0:00:11.9]} 39. Bd6 {[%clk 0:00:02.4]} 39... Bxe7 {[%clk 0:00:11.3]} 40. Bc7
{[%clk 0:00:02.6]} 40... Bb4 {[%clk 0:00:10.6]} 41. Ra1 {[%clk 0:00:03.2]} 41...
Re1+ {[%clk 0:00:10.6]} 42. Rxe1 {[%clk 0:00:02.8]} 42... Bxe1 {[%clk
0:00:11.5]} 43. Kg1 {[%clk 0:00:03.7]} 43... Bb4 {[%clk 0:00:10.7]} 44. Kf1
{[%clk 0:00:04]} 44... a4 {[%clk 0:00:11.2]} 45. Be5 {[%clk 0:00:02.5]} 45... a3
{[%clk 0:00:11.7]} 46. Ke2 {[%clk 0:00:02.7]} 46... Be7 {[%clk 0:00:12.1]} 47.
Ba1 {[%clk 0:00:03.6]} 47... Bf6 {[%clk 0:00:12.1]} 48. Bxf6 {[%clk 0:00:03.5]}
48... Kxf6 {[%clk 0:00:13]} 0-1

[Event "*** SCC Grand Prix: Titled Tuesday Blitz"]
[Site "Chess.com"]
[Date "2020.06.02"]
[Round "4"]
[White "Mikasinski"]
[Black "LileKoridze"]
[Result "1/2-1/2"]
[WhiteElo "2473"]
[BlackElo "2313"]
[TimeControl "180+1"]
[EndTime "10:40:47 PDT"]
[Termination "Game drawn by repetition"]

1. e4 {[%clk 0:03:00.9]} 1... c5 {[%clk 0:02:59.6]} 2. Nf3 {[%clk 0:03:00.8]}
2... d6 {[%clk 0:02:59.7]} 3. d4 {[%clk 0:03:00.8]} 3... cxd4 {[%clk 0:02:59.1]}
4. Nxd4 {[%clk 0:03:01.7]} 4... Nf6 {[%clk 0:02:59.1]} 5. Nc3 {[%clk 0:03:01.8]}
5... Nc6 {[%clk 0:02:59.6]} 6. Bg5 {[%clk 0:03:01.4]} 6... e6 {[%clk 0:02:59.2]}
7. Qd2 {[%clk 0:03:01.9]} 7... a6 {[%clk 0:02:58.8]} 8. O-O-O {[%clk 0:03:02.1]}
8... Bd7 {[%clk 0:02:59.3]} 9. f4 {[%clk 0:03:01.7]} 9... b5 {[%clk 0:02:59.3]}
10. Bxf6 {[%clk 0:02:56.6]} 10... gxf6 {[%clk 0:02:58.5]} 11. Nxc6 {[%clk
0:02:54.6]} 11... Bxc6 {[%clk 0:02:58.5]} 12. Qe1 {[%clk 0:02:55.1]} 12... h5
{[%clk 0:02:56.2]} 13. Kb1 {[%clk 0:02:53.2]} 13... b4 {[%clk 0:02:44.4]} 14.
Nd5 {[%clk 0:02:52.3]} 14... Bh6 {[%clk 0:02:38.1]} 15. Nxb4 {[%clk 0:02:47.9]}
15... Bb5 {[%clk 0:02:35.5]} 16. Bxb5+ {[%clk 0:02:44.7]} 16... axb5 {[%clk
0:02:35.8]} 17. g3 {[%clk 0:02:42.3]} 17... Ra4 {[%clk 0:02:20.8]} 18. a3 {[%clk
0:02:37.4]} 18... Bf8 {[%clk 0:02:17.5]} 19. Qc3 {[%clk 0:02:29.8]} 19... d5
{[%clk 0:01:54.9]} 20. Qc6+ {[%clk 0:02:17.3]} 20... Qd7 {[%clk 0:01:54.9]} 21.
exd5 {[%clk 0:02:12.9]} 21... Bxb4 {[%clk 0:01:54.4]} 22. Qxd7+ {[%clk
0:02:10.6]} 22... Kxd7 {[%clk 0:01:54.7]} 23. dxe6+ {[%clk 0:02:08.4]} 23...
Kxe6 {[%clk 0:01:55.6]} 24. axb4 {[%clk 0:02:07.5]} 24... Rxb4 {[%clk
0:01:56.1]} 25. Rhe1+ {[%clk 0:02:06.3]} 25... Kf5 {[%clk 0:01:55]} 26. h3
{[%clk 0:01:58.9]} 26... Ra8 {[%clk 0:01:53]} 27. Rd5+ {[%clk 0:01:55.4]} 27...
Kg6 {[%clk 0:01:52.7]} 28. b3 {[%clk 0:01:48.8]} 28... f5 {[%clk 0:01:49.3]} 29.
Kb2 {[%clk 0:01:33.8]} 29... f6 {[%clk 0:01:43.6]} 30. c3 {[%clk 0:01:26.5]}
30... Re4 {[%clk 0:01:43]} 31. Rxe4 {[%clk 0:01:25.8]} 31... fxe4 {[%clk
0:01:43]} 32. Rxb5 {[%clk 0:01:13.2]} 32... Rd8 {[%clk 0:01:43.2]} 33. Kc2
{[%clk 0:01:04.5]} 33... e3 {[%clk 0:01:34.5]} 34. Rb7 {[%clk 0:00:19.6]} 34...
Rd2+ {[%clk 0:01:15.1]} 35. Kc1 {[%clk 0:00:19.3]} 35... Rg2 {[%clk 0:01:15.2]}
36. Re7 {[%clk 0:00:18.5]} 36... Rxg3 {[%clk 0:01:14.8]} 37. b4 {[%clk
0:00:16.8]} 37... Rxh3 {[%clk 0:01:11]} 38. b5 {[%clk 0:00:16.3]} 38... Rh1+
{[%clk 0:01:06.8]} 39. Kc2 {[%clk 0:00:14.9]} 39... Rh2+ {[%clk 0:01:06]} 40.
Kb3 {[%clk 0:00:10.4]} 40... e2 {[%clk 0:01:03]} 41. b6 {[%clk 0:00:09.7]} 41...
Rh1 {[%clk 0:01:01.8]} 42. Rxe2 {[%clk 0:00:09.7]} 42... Rd1 {[%clk 0:00:48.5]}
43. c4 {[%clk 0:00:06.3]} 43... h4 {[%clk 0:00:46.5]} 44. c5 {[%clk 0:00:05.9]}
44... h3 {[%clk 0:00:45.4]} 45. b7 {[%clk 0:00:05.7]} 45... Rb1+ {[%clk
0:00:45.4]} 46. Rb2 {[%clk 0:00:05.3]} 46... Rxb2+ {[%clk 0:00:39.3]} 47. Kxb2
{[%clk 0:00:05.4]} 47... h2 {[%clk 0:00:39.8]} 48. b8=Q {[%clk 0:00:02.9]} 48...
h1=Q {[%clk 0:00:40]} 49. Qg8+ {[%clk 0:00:03.2]} 49... Kf5 {[%clk 0:00:40.2]}
50. Qc4 {[%clk 0:00:03.1]} 50... Qb7+ {[%clk 0:00:34.4]} 51. Kc3 {[%clk
0:00:02.9]} 51... Qc7 {[%clk 0:00:31.1]} 52. Qd5+ {[%clk 0:00:02.3]} 52... Kg6
{[%clk 0:00:23.9]} 53. f5+ {[%clk 0:00:01.8]} 53... Kg5 {[%clk 0:00:20.7]} 54.
Kc4 {[%clk 0:00:02.1]} 54... Qf4+ {[%clk 0:00:19.6]} 55. Kb5 {[%clk 0:00:02.3]}
55... Qb8+ {[%clk 0:00:16.3]} 56. Kc6 {[%clk 0:00:02.7]} 56... Qc8+ {[%clk
0:00:15.2]} 57. Kd6 {[%clk 0:00:03.3]} 57... Qd8+ {[%clk 0:00:15.3]} 58. Ke6
{[%clk 0:00:02.6]} 58... Qe8+ {[%clk 0:00:12]} 59. Kd6 {[%clk 0:00:02.8]} 59...
Qd8+ {[%clk 0:00:11.9]} 60. Kc6 {[%clk 0:00:03.2]} 60... Qa8+ {[%clk 0:00:11.2]}
61. Kd6 {[%clk 0:00:03]} 61... Qd8+ {[%clk 0:00:11.4]} 1/2-1/2

[Event "*** SCC Grand Prix: Titled Tuesday Blitz"]
[Site "Chess.com"]
[Date "2020.06.02"]
[Round "4"]
[White "Moon_stone123"]
[Black "not_najdorfs_player"]
[Result "1-0"]
[WhiteElo "2477"]
[BlackElo "2304"]
[TimeControl "180+1"]
[EndTime "10:40:48 PDT"]
[Termination "Moon_stone123 won by resignation"]

1. e4 {[%clk 0:03:00.9]} 1... c5 {[%clk 0:02:59.4]} 2. Nf3 {[%clk 0:03:00.6]}
2... d6 {[%clk 0:02:59.4]} 3. Nc3 {[%clk 0:02:59.6]} 3... Nc6 {[%clk 0:02:58.6]}
4. d4 {[%clk 0:02:57.8]} 4... cxd4 {[%clk 0:02:58.4]} 5. Nxd4 {[%clk 0:02:58.7]}
5... Nf6 {[%clk 0:02:58.6]} 6. Bg5 {[%clk 0:02:58.5]} 6... e6 {[%clk 0:02:58.4]}
7. Qd2 {[%clk 0:02:58.3]} 7... a6 {[%clk 0:02:55.5]} 8. O-O-O {[%clk 0:02:57.9]}
8... Bd7 {[%clk 0:02:55.2]} 9. f4 {[%clk 0:02:56.9]} 9... b5 {[%clk 0:02:54.9]}
10. a3 {[%clk 0:02:47.2]} 10... Qb6 {[%clk 0:02:50.3]} 11. Bxf6 {[%clk
0:02:43.8]} 11... gxf6 {[%clk 0:02:50]} 12. Nxc6 {[%clk 0:02:43.6]} 12... Bxc6
{[%clk 0:02:50.3]} 13. f5 {[%clk 0:02:43.3]} 13... e5 {[%clk 0:02:48.5]} 14. Kb1
{[%clk 0:02:41]} 14... Rc8 {[%clk 0:02:41.8]} 15. Be2 {[%clk 0:02:32.6]} 15...
h5 {[%clk 0:02:35.7]} 16. h4 {[%clk 0:02:26.5]} 16... Qc5 {[%clk 0:02:20.1]} 17.
Bf3 {[%clk 0:02:21.3]} 17... Bb7 {[%clk 0:02:11.9]} 18. Qe2 {[%clk 0:01:57.6]}
18... Qb6 {[%clk 0:01:05]} 19. Rd3 {[%clk 0:01:42.1]} 19... a5 {[%clk
0:01:02.2]} 20. Nd5 {[%clk 0:01:41.8]} 20... Bxd5 {[%clk 0:01:01.5]} 21. Rxd5
{[%clk 0:01:42.7]} 21... Rc5 {[%clk 0:00:55]} 22. Rhd1 {[%clk 0:01:39.8]} 22...
Rc4 {[%clk 0:00:36.1]} 23. Bxh5 {[%clk 0:01:09.5]} 23... Rxh5 {[%clk 0:00:24.1]}
24. Qxh5 {[%clk 0:01:07.3]} 24... Rxe4 {[%clk 0:00:23.2]} 25. Qf3 {[%clk
0:01:00.7]} 25... Rxh4 {[%clk 0:00:17.2]} 26. Qd3 {[%clk 0:00:47.1]} 26... Rc4
{[%clk 0:00:15.1]} 27. b3 {[%clk 0:00:46.4]} 27... Rc5 {[%clk 0:00:14.7]} 28.
Rxc5 {[%clk 0:00:43.4]} 28... Qxc5 {[%clk 0:00:15.6]} 29. Qd5 {[%clk 0:00:42.9]}
29... Qb6 {[%clk 0:00:07.3]} 30. Qa8+ {[%clk 0:00:34.9]} 30... Ke7 {[%clk
0:00:07.4]} 31. Qd5 {[%clk 0:00:31.3]} 31... Bh6 {[%clk 0:00:07.5]} 32. g4
{[%clk 0:00:22.5]} 32... Be3 {[%clk 0:00:06.6]} 33. c4 {[%clk 0:00:21.4]} 33...
bxc4 {[%clk 0:00:06.1]} 34. Qxc4 {[%clk 0:00:22.3]} 34... Bc5 {[%clk 0:00:06.4]}
35. Kb2 {[%clk 0:00:20.4]} 35... Qb7 {[%clk 0:00:06.1]} 36. Rd2 {[%clk
0:00:18.7]} 36... Qb6 {[%clk 0:00:05.3]} 37. Qd5 {[%clk 0:00:17.8]} 37... Bd4+
{[%clk 0:00:05.6]} 38. Kc2 {[%clk 0:00:16.6]} 38... Bc5 {[%clk 0:00:05.4]} 39.
Qc4 {[%clk 0:00:15.8]} 39... Bxa3 {[%clk 0:00:05]} 40. g5 {[%clk 0:00:15.1]}
40... fxg5 {[%clk 0:00:04.6]} 41. f6+ {[%clk 0:00:15.5]} 41... Ke8 {[%clk
0:00:04.3]} 42. Qc8+ {[%clk 0:00:14.7]} 42... Qd8 {[%clk 0:00:04.7]} 43. Qc6+
{[%clk 0:00:13.7]} 43... Qd7 {[%clk 0:00:05.3]} 44. Qa8+ {[%clk 0:00:14.1]}
44... Qd8 {[%clk 0:00:05.5]} 45. Qd5 {[%clk 0:00:14.3]} 45... Qc7+ {[%clk
0:00:05.3]} 46. Kd1 {[%clk 0:00:13]} 46... Qc5 {[%clk 0:00:04.1]} 47. Qa8+
{[%clk 0:00:12.2]} 47... Kd7 {[%clk 0:00:03.9]} 48. Qb7+ {[%clk 0:00:12.4]}
48... Kd8 {[%clk 0:00:04.5]} 49. Qe7+ {[%clk 0:00:11.8]} 49... Kc8 {[%clk
0:00:03.8]} 50. Qf8+ {[%clk 0:00:11.9]} 50... Kb7 {[%clk 0:00:03.7]} 51. Qxf7+
{[%clk 0:00:12.2]} 51... Ka6 {[%clk 0:00:04.2]} 52. Qc4+ {[%clk 0:00:12.4]}
52... Qxc4 {[%clk 0:00:04.6]} 53. bxc4 {[%clk 0:00:13.3]} 53... g4 {[%clk
0:00:04.6]} 54. f7 {[%clk 0:00:13.1]} 54... d5 {[%clk 0:00:05.2]} 55. cxd5
{[%clk 0:00:13.5]} 55... Bd6 {[%clk 0:00:05.8]} 56. Rg2 {[%clk 0:00:12.7]} 56...
Kb6 {[%clk 0:00:05.2]} 57. Rxg4 {[%clk 0:00:13]} 57... Kc5 {[%clk 0:00:06.1]}
58. Rg8 {[%clk 0:00:13.4]} 58... Kxd5 {[%clk 0:00:06.2]} 59. f8=Q {[%clk
0:00:13.8]} 59... Bxf8 {[%clk 0:00:06.3]} 60. Rxf8 {[%clk 0:00:14.7]} 60... Kd4
{[%clk 0:00:06.6]} 61. Ra8 {[%clk 0:00:14.7]} 61... e4 {[%clk 0:00:06.3]} 62.
Rxa5 {[%clk 0:00:15]} 62... Ke3 {[%clk 0:00:07.2]} 63. Ke1 {[%clk 0:00:15.2]}
1-0

[Event "*** SCC Grand Prix: Titled Tuesday Blitz"]
[Site "Chess.com"]
[Date "2020.06.02"]
[Round "4"]
[White "Vuk2000"]
[Black "Ceejay271"]
[Result "0-1"]
[WhiteElo "2631"]
[BlackElo "2414"]
[TimeControl "180+1"]
[EndTime "10:40:49 PDT"]
[Termination "Ceejay271 won on time"]

1. e4 {[%clk 0:03:00.9]} 1... c5 {[%clk 0:02:57.6]} 2. g3 {[%clk 0:02:59.6]}
2... d5 {[%clk 0:02:55.3]} 3. exd5 {[%clk 0:02:58.9]} 3... Qxd5 {[%clk
0:02:55.3]} 4. Nf3 {[%clk 0:02:58.3]} 4... Bg4 {[%clk 0:02:55.3]} 5. Bg2 {[%clk
0:02:55.1]} 5... Qe6+ {[%clk 0:02:55.2]} 6. Kf1 {[%clk 0:02:51]} 6... Nf6 {[%clk
0:02:52.8]} 7. h3 {[%clk 0:02:49.6]} 7... Bh5 {[%clk 0:02:51.9]} 8. d3 {[%clk
0:02:41.5]} 8... Nc6 {[%clk 0:02:50.8]} 9. Be3 {[%clk 0:02:28.4]} 9... Qd6
{[%clk 0:02:28.9]} 10. Nbd2 {[%clk 0:02:19.3]} 10... Nd5 {[%clk 0:02:27.9]} 11.
Bg5 {[%clk 0:02:12.7]} 11... e6 {[%clk 0:02:21.4]} 12. Ne4 {[%clk 0:02:10.9]}
12... Qc7 {[%clk 0:02:19.3]} 13. a3 {[%clk 0:02:01.1]} 13... Be7 {[%clk
0:02:18.3]} 14. Qc1 {[%clk 0:01:55.3]} 14... h6 {[%clk 0:02:12.8]} 15. Bxe7
{[%clk 0:01:53.7]} 15... Qxe7 {[%clk 0:02:12]} 16. Nc3 {[%clk 0:01:42.4]} 16...
Nxc3 {[%clk 0:02:06.2]} 17. bxc3 {[%clk 0:01:41.4]} 17... O-O {[%clk 0:01:57.1]}
18. Qf4 {[%clk 0:01:37.9]} 18... Rac8 {[%clk 0:01:48.7]} 19. Re1 {[%clk
0:01:27.3]} 19... Rfd8 {[%clk 0:01:41]} 20. g4 {[%clk 0:01:21.6]} 20... Bg6
{[%clk 0:01:40.5]} 21. c4 {[%clk 0:01:15]} 21... Nd4 {[%clk 0:01:26.5]} 22. Nxd4
{[%clk 0:01:04.5]} 22... Rxd4 {[%clk 0:01:27.4]} 23. Be4 {[%clk 0:00:51.3]}
23... Rcd8 {[%clk 0:01:02.2]} 24. Qf3 {[%clk 0:00:49.3]} 24... Bxe4 {[%clk
0:01:00.4]} 25. Rxe4 {[%clk 0:00:49.2]} 25... Rxe4 {[%clk 0:01:00.4]} 26. Qxe4
{[%clk 0:00:50.1]} 26... Rd4 {[%clk 0:00:57.8]} 27. Qe5 {[%clk 0:00:49.4]} 27...
b6 {[%clk 0:00:52.7]} 28. Kg2 {[%clk 0:00:48.3]} 28... Qd6 {[%clk 0:00:48.1]}
29. Qxd6 {[%clk 0:00:45.9]} 29... Rxd6 {[%clk 0:00:49]} 30. f4 {[%clk 0:00:40]}
30... Kf8 {[%clk 0:00:47.5]} 31. Kf3 {[%clk 0:00:38.8]} 31... f5 {[%clk
0:00:46.5]} 32. a4 {[%clk 0:00:33.7]} 32... Kf7 {[%clk 0:00:43.6]} 33. Rb1
{[%clk 0:00:30.2]} 33... Kf6 {[%clk 0:00:43.1]} 34. a5 {[%clk 0:00:28.7]} 34...
g5 {[%clk 0:00:42.6]} 35. fxg5+ {[%clk 0:00:25.3]} 35... hxg5 {[%clk 0:00:42]}
36. a6 {[%clk 0:00:22.1]} 36... Rd7 {[%clk 0:00:37.4]} 37. Rh1 {[%clk
0:00:20.8]} 37... Rh7 {[%clk 0:00:36.1]} 38. Kg3 {[%clk 0:00:19.7]} 38... f4+
{[%clk 0:00:31.2]} 39. Kf3 {[%clk 0:00:18.6]} 39... e5 {[%clk 0:00:31.2]} 40.
Ke4 {[%clk 0:00:16.6]} 40... Ke6 {[%clk 0:00:31.3]} 41. Rh2 {[%clk 0:00:15.3]}
41... Rh8 {[%clk 0:00:29.3]} 42. Kf3 {[%clk 0:00:14.5]} 42... Rh7 {[%clk
0:00:29]} 43. Rh1 {[%clk 0:00:13.6]} 43... Rh4 {[%clk 0:00:28.1]} 44. Kg2 {[%clk
0:00:12.8]} 44... e4 {[%clk 0:00:26]} 45. dxe4 {[%clk 0:00:10.7]} 45... Ke5
{[%clk 0:00:21.7]} 46. Rd1 {[%clk 0:00:11.6]} 46... Kxe4 {[%clk 0:00:19.9]} 47.
Rd7 {[%clk 0:00:10.3]} 47... Rh6 {[%clk 0:00:12]} 48. Rxa7 {[%clk 0:00:08.6]}
48... Rf6 {[%clk 0:00:09]} 49. Re7+ {[%clk 0:00:07.5]} 49... Kd4 {[%clk
0:00:09.2]} 50. a7 {[%clk 0:00:08.3]} 50... Rf8 {[%clk 0:00:09.2]} 51. h4 {[%clk
0:00:07.2]} 51... f3+ {[%clk 0:00:07.9]} 52. Kf2 {[%clk 0:00:04.9]} 52... gxh4
{[%clk 0:00:08.5]} 53. g5 {[%clk 0:00:02.9]} 53... h3 {[%clk 0:00:08.5]} 54. Rh7
{[%clk 0:00:01.8]} 54... Ra8 {[%clk 0:00:07.3]} 55. g6 {[%clk 0:00:02.7]} 55...
h2 {[%clk 0:00:06.7]} 56. g7 {[%clk 0:00:01.2]} 56... Kxc4 {[%clk 0:00:03.9]}
0-1

[Event "*** SCC Grand Prix: Titled Tuesday Blitz"]
[Site "Chess.com"]
[Date "2020.06.02"]
[Round "4"]
[White "1977Ivan"]
[Black "manmanlai1"]
[Result "0-1"]
[WhiteElo "2584"]
[BlackElo "2378"]
[TimeControl "180+1"]
[EndTime "10:40:56 PDT"]
[Termination "manmanlai1 won on time"]

1. e4 {[%clk 0:02:59.2]} 1... c5 {[%clk 0:02:59.6]} 2. Nf3 {[%clk 0:02:58.6]}
2... e6 {[%clk 0:02:59.8]} 3. d4 {[%clk 0:02:55.2]} 3... cxd4 {[%clk 0:03:00.7]}
4. Nxd4 {[%clk 0:02:55.7]} 4... a6 {[%clk 0:03:00.5]} 5. c4 {[%clk 0:02:54.8]}
5... Qc7 {[%clk 0:02:59.6]} 6. Nc3 {[%clk 0:02:55.2]} 6... Nf6 {[%clk
0:02:59.8]} 7. Be2 {[%clk 0:02:55.2]} 7... d6 {[%clk 0:02:48.7]} 8. O-O {[%clk
0:02:54.8]} 8... Nbd7 {[%clk 0:02:49.3]} 9. f4 {[%clk 0:02:53.2]} 9... g6 {[%clk
0:02:46.1]} 10. Kh1 {[%clk 0:02:32]} 10... Bg7 {[%clk 0:02:45.7]} 11. b4 {[%clk
0:02:32.4]} 11... O-O {[%clk 0:02:44.6]} 12. Bb2 {[%clk 0:02:31.8]} 12... b6
{[%clk 0:02:43.1]} 13. Rc1 {[%clk 0:02:31.2]} 13... Bb7 {[%clk 0:02:43]} 14. Bf3
{[%clk 0:02:15.2]} 14... Rac8 {[%clk 0:02:39.8]} 15. Nd5 {[%clk 0:02:03.8]}
15... exd5 {[%clk 0:02:34.1]} 16. cxd5 {[%clk 0:02:04.7]} 16... Qb8 {[%clk
0:02:24]} 17. Nc6 {[%clk 0:02:04.6]} 17... Qa8 {[%clk 0:01:31.9]} 18. e5 {[%clk
0:01:43.5]} 18... Nxd5 {[%clk 0:01:06.8]} 19. Qxd5 {[%clk 0:01:38.8]} 19... Bxc6
{[%clk 0:00:53.8]} 20. Rxc6 {[%clk 0:01:37.3]} 20... Rxc6 {[%clk 0:00:50.2]} 21.
Qxc6 {[%clk 0:01:37.2]} 21... Qxc6 {[%clk 0:00:48]} 22. Bxc6 {[%clk 0:01:38.1]}
22... Nb8 {[%clk 0:00:48.2]} 23. Bd5 {[%clk 0:01:31]} 23... dxe5 {[%clk
0:00:39.3]} 24. fxe5 {[%clk 0:01:30.8]} 24... Nd7 {[%clk 0:00:31.8]} 25. e6
{[%clk 0:01:22.1]} 25... fxe6 {[%clk 0:00:28]} 26. Bxe6+ {[%clk 0:01:21.2]}
26... Kh8 {[%clk 0:00:27.6]} 27. Bxg7+ {[%clk 0:01:06.1]} 27... Kxg7 {[%clk
0:00:27.7]} 28. Rc1 {[%clk 0:01:05]} 28... Ne5 {[%clk 0:00:24.1]} 29. h3 {[%clk
0:00:58.3]} 29... Re8 {[%clk 0:00:21.3]} 30. Rc7+ {[%clk 0:00:56.4]} 30... Kf6
{[%clk 0:00:20.3]} 31. Bd5 {[%clk 0:00:48.5]} 31... Re7 {[%clk 0:00:19.5]} 32.
Rc8 {[%clk 0:00:40.2]} 32... Rd7 {[%clk 0:00:19.7]} 33. Bb3 {[%clk 0:00:36.2]}
33... a5 {[%clk 0:00:17.4]} 34. bxa5 {[%clk 0:00:35.2]} 34... bxa5 {[%clk
0:00:18.3]} 35. Ra8 {[%clk 0:00:35.1]} 35... Nd3 {[%clk 0:00:11.6]} 36. Ra6+
{[%clk 0:00:32.3]} 36... Kg5 {[%clk 0:00:10.8]} 37. Rxa5+ {[%clk 0:00:31.8]}
37... Kf4 {[%clk 0:00:11.2]} 38. Kh2 {[%clk 0:00:31.8]} 38... h5 {[%clk
0:00:10.8]} 39. Ra4+ {[%clk 0:00:30.5]} 39... Kg5 {[%clk 0:00:10.5]} 40. Kg3
{[%clk 0:00:28.5]} 40... Ne5 {[%clk 0:00:09.8]} 41. Ra5 {[%clk 0:00:26.6]} 41...
Rd3+ {[%clk 0:00:09.2]} 42. Kf2 {[%clk 0:00:26.2]} 42... Kf4 {[%clk 0:00:09.4]}
43. Rd5 {[%clk 0:00:20.8]} 43... Rc3 {[%clk 0:00:08]} 44. Rd4+ {[%clk
0:00:20.4]} 44... Kf5 {[%clk 0:00:07.9]} 45. Ke2 {[%clk 0:00:16.8]} 45... g5
{[%clk 0:00:07]} 46. Kd2 {[%clk 0:00:14.7]} 46... Rg3 {[%clk 0:00:07.1]} 47.
Bc2+ {[%clk 0:00:14.5]} 47... Kf6 {[%clk 0:00:05.5]} 48. Be4 {[%clk 0:00:13.7]}
48... g4 {[%clk 0:00:05.7]} 49. hxg4 {[%clk 0:00:12.8]} 49... Rxg4 {[%clk
0:00:05]} 50. Kc3 {[%clk 0:00:11.9]} 50... Nf7 {[%clk 0:00:03.6]} 51. Bd5 {[%clk
0:00:10.8]} 51... Rg3+ {[%clk 0:00:02.9]} 52. Kb4 {[%clk 0:00:10.9]} 52... Ne5
{[%clk 0:00:01.4]} 53. a4 {[%clk 0:00:10]} 53... Nd3+ {[%clk 0:00:01.5]} 54. Kb5
{[%clk 0:00:09.5]} 54... Ke5 {[%clk 0:00:01.9]} 55. Kc4 {[%clk 0:00:03.6]} 55...
Nb2+ {[%clk 0:00:01.5]} 56. Kc5 {[%clk 0:00:03.8]} 56... Rc3+ {[%clk 0:00:01.2]}
57. Bc4 {[%clk 0:00:03.2]} 57... Nxa4+ {[%clk 0:00:01.1]} 58. Kb4 {[%clk
0:00:02]} 58... Kxd4 {[%clk 0:00:02]} 59. Bb5 {[%clk 0:00:01]} 59... Nc5 {[%clk
0:00:01.6]} 60. Bc4 {[%clk 0:00:01]} 60... Nd3+ {[%clk 0:00:02.5]} 0-1